{"text_format":"3","workbook":"xlsx","n_sheets":13,"sheets":["Začiatok","Základy","Úvodné informácie o funkciách","AVERAGE","MIN a MAX","Dátum a čas","Spojenie textu a čísel","Príkazy IF","VLOOKUP","Podmienené funkcie","Sprievodca funkciami","Chyby vo vzorcoch","Ďalšie informácie"],"not_rendered":{"images":30,"defined_names":21},"read":"whole","date_system":"1900"}

{"sheet":"Začiatok","index":0,"n_rows":4,"n_cols":1,"rows_kept":4}
[]
["Začíname pracovať so vzorcami"]
["Len niekoľko krokov vás delí od toho, aby ste sa naučili vytvárať vzorce a funkcie v Exceli, najvýkonnejšej tabuľkovej aplikácii na svete."]
["Späť na začiatok prejdete stlačením kombinácie klávesov CTRL + HOME. Ak ste pripravení začať s prehliadkou, stlačte kombináciu klávesov CTRL + PAGE DOWN."]

{"sheet":"Základy","index":1,"n_rows":43,"n_cols":10,"rows_kept":43}
["Základy: matematické výpočty v Exceli"]
["V Exceli môžete sčitovať, odčitovať, násobiť a deliť bez použitia vstavaných funkcií. Stačí použiť základné operátory: +, -, *, /. Všetky vzorce začínajú znakom rovnosti (=).\n",null,"Použité čísla:",null,"Operácia:","Vzorce:","Odpovede:"]
["Ak chcete sčitovať, vyberte bunku F3, zadajte vzorec =C3+C4 a potom stlačte kláves Enter. \n",null,1,null,"Sčítanie (+) ",null,{"$f":"C3+C4","v":3}]
["Ak chcete odčitovať, vyberte bunku F4, zadajte vzorec =C3-C4 a potom stlačte kláves Enter. ",null,2,null,"Odčítanie (-) ",null,{"$f":"C3-C4","v":-1}]
["Ak chcete násobiť, vyberte bunku F5, zadajte vzorec =C3*C4 a potom stlačte kláves Enter.\n",{"$nulls":3},"Násobenie (*) ",null,{"$f":"C3*C4","v":2}]
["Ak chcete deliť, vyberte bunku F6, zadajte vzorec =C3/C4 a potom stlačte kláves Enter.\n",{"$nulls":3},"Delenie (/) ",null,{"$f":"C3/C4","v":0.5}]
["Vyskúšajte to: zmeňte čísla v bunkách C3 a C4 a sledujte, ako sa automaticky zmenia výsledky vzorcov.",{"$nulls":3},"Umocnenie (^) ",null,{"$f":"C3^C4","v":1}]
["BODY NAVYŠE: Hodnotu môžete umocniť pomocou znaku vsuvky (^), napríklad =A1^A2. Zadáte ho stlačením kombinácie klávesov Alt + 94. Do bunky F7 zadajte vzorec =C3^C4."]
["Ďalšie podrobnosti nájdete nižšie"]
["Ďalší krok"]
["Ďalšie informácie o vzorcoch, bunkách a rozsahoch"]
["Excel tvoria jednotlivé bunky, ktoré sú usporiadané do riadkov a stĺpcov. Riadky sú označené číslami a stĺpce písmenami. K dispozícii je vyše 1 milión riadkov a 16 000 stĺpcov, do ktorých môžete vložiť vzorce. \n"]
["Vzorce môžu obsahovať odkazy na bunky, rozsahy odkazov na bunky, operátory a konštanty. Toto všetko sú príklady vzorcov:\n\n=A1+B1\n=10+20\n=SUM(A1:A10)\n\n"]
["Všimnite si, že v treťom z vyššie uvedených príkladov sme použili funkciu SUM. Funkcia je vopred zostavený príkaz, ktorý vyberie určité hodnoty, uskutoční s nimi určitý výpočet a vráti výsledok. Funkcia SUM napríklad sa vyberie zadané odkazy na bunky alebo rozsahy a sčíta ich. V tomto príklade vyberie bunky A1 až A10 a sčíta ich. Excel obsahuje vyše 400 funkcií, ktoré si môžete prezrieť na karte Vzorce.\n"]
["Vzorce s funkciami začínajú znakom rovnosti, za ktorým nasleduje názov funkcie a jej argumenty (hodnoty, ktoré funkcia použije na výpočet) uzavreté v zátvorkách. \n"]
["Vzorec potvrdíte stlačením klávesu Enter. Keď to urobíte, vzorec sa vypočíta a v bunke sa zobrazí výsledok. Samotný vzorec sa zobrazuje v riadku vzorcov pod pásom s nástrojmi. Vzorec tiež môžete zobraziť v bunke tak, že prejdete do režimu úprav stlačením klávesu F2. Opätovným stlačením klávesu Enter dokončíte vzorec a vypočítate výsledok.\n\n"]
["Niekoľko vysvetlení k vzorcom"]
["=10+20 je vzorec, pričom čísla 10 a 20 sú konštanty a znak + je operátor."]
["=SUM(A1:A10) je vzorec, pričom SUM je názov funkcie, medzi ľavou a pravou zátvorkou sú uvedené argumenty vzorca a A1:A10 je rozsah buniek pre funkciu."]
["=SUM(A1:A10;C1:C10) je vzorec, pričom SUM je názov funkcie, medzi ľavou a pravou zátvorkou sú uvedené argumenty vzorca a A1:A10;C1:C10 sú rozsahy buniek pre funkciu oddelené bodkočiarkou."]
["DOBRE VEDIEŤ: Konštanty sú hodnoty, ktoré zadávate do buniek alebo vzorcov. Vzorec =10+20 síce môže vypočítať rovnaký výsledok ako vzorec =A1+B1, používať vo vzorcoch konštanty však nie je vhodné. Prečo? Konštantu totiž uvidíte jedine tak, že vyberiete bunku a vyhľadáte ju. Z tohto dôvodu môže byť ťažké ju neskôr zmeniť. Omnoho jednoduchšie je vložiť konštanty do buniek, v ktorých ich možno jednoducho upraviť, a do vzorcov vložiť odkazy na bunky.\n\nPríklad: Vyberte nižšie uvedenú žltú bunku s číslom 12. Všimnite si, že sme použili funkciu SUM s rozsahom buniek. Priamo do vzorca sme nezadali číslo 4 ani 8. \n"]
["Predchádzajúci"]
["Nasledujúci"]
["Ďalšie informácie na webe"]
["Používanie Excelu ako kalkulačky"]
["Prehľad vzorcov v Exceli"]
["Zoznam funkcií Excelu (podľa kategórie) "]
["Zoznam funkcií Excelu (podľa abecedy) "]
["Bezplatné online školenie pre Excel"]
{"$rows_empty":10}
[{"$nulls":9},"Hodnoty"]
[{"$nulls":9},4]
[{"$nulls":9},8]
[{"$nulls":9},{"$f":"SUM(J41:J42)","v":12}]

{"sheet":"Úvodné informácie o funkciách","index":2,"n_rows":51,"n_cols":7,"rows_kept":51}
["Úvodné informácie o funkciách"]
["Funkcie vám umožňujú vykonávať rôzne veci, napríklad uskutočňovať matematické operácie, vyhľadávať hodnoty alebo dokonca vypočítavať dátumy a časy. Vyskúšajme si niekoľko spôsobov sčítania hodnôt pomocou funkcie SUM.",null,"Ovocie","Množstvo",null,"Mäso","Množstvo"]
["Do bunky D7 pod stĺpcom Množstvo v tabuľke pre ovocie zadajte vzorec =SUM(D3:D6), alebo napíšte vzorec =SUM(, potom vyberte daný rozsah pomocou myši a stlačte kláves Enter. Týmto sa sčítajú hodnoty v bunkách D3, D4, D5 a D6. Odpoveď by mal byť 170.\n",null,"Jablká",50,null,"Hovädzie",50]
["Teraz si vyskúšajme príkaz Automatický súčet. Vyberte bunku G7 pod stĺpcom pre mäso a potom vyberte položky Vzorce > Automatický súčet > Suma. Excel automaticky zadá vzorec. Potvrďte ho stlačením klávesu Enter. Príkaz Automatický súčet obsahuje všetky najbežnejšie funkcie.\n",null,"Pomaranče",20,null,"Kuracie",30]
["Tu je šikovná klávesová skratka: Vyberte bunku D15, stlačte kombináciu klávesov Alt + = a potom kláves Enter. Týmto sa automaticky zadá vzorec funkcie SUM.",null,"Banány",60,null,"Bravčové",10]
["Ďalšie podrobnosti nájdete nižšie",null,"Citróny",40,null,"Ryby",50]
["BODY NAVYŠE\nSkúste použiť funkciu COUNT, pričom uplatnite ktorúkoľvek z metód, ktoré ste už vyskúšali. Funkcia COUNT sčíta počet buniek v rozsahu, ktoré obsahujú čísla.",null,"SÚČET > ",{"$f":"SUM(D3:D6)","v":170},null,"SÚČET > "]
["Ďalší krok"]
["Ďalšie informácie o funkciách",null,"Položka","Množstvo",null,"Položka","Množstvo"]
["Prejdite na kartu Vzorce a prezrite si Knižnica funkcií, v ktorej sú funkcie uvedené podľa kategórií, ako sú napríklad kategórie Textové, Dátum a čas atď. Položka Vložiť funkciu vám umožňuje vyhľadávať funkcie podľa názvu a spustiť Sprievodcu funkciami, ktorý vám pomôže vytvoriť vzorec. \n\nKeď po stlačení klávesu = začnete zadávať názov funkcie, Excel spustí funkciu Intellisense, ktorá zobrazí zoznam všetkých funkcií začínajúcich sa na písmená, ktoré zadáte. Keď nájdete požadovanú funkciu, stlačte kláves Tab a Excel automaticky dokončí názov funkcie a zadá ľavú zátvorku. Zobrazia sa aj voliteľné a povinné argumenty. \n\n\n\nPoďme sa teraz pozrieť na anatómiu niekoľkých funkcií. Funkcia SUM má takúto štruktúru:",null,"Chlieb",50,null,"Chlieb",50]
["Keby funkcia SUM mohla rozprávať, povedala by asi toto: Vráťte súčet všetkých hodnôt v bunkách D35 až D38 a všetkých hodnôt v stĺpci H. SUM je názov funkcie, D35:D38 je prvý rozsahový argument, ktorý je takmer vždy povinný, a H:H je druhý rozsahový argument, oddelený bodkočiarkou. Teraz skúsme funkciu, ktorá nevyžaduje žiadne argumenty.\n",null,"Šišky",100,null,"Šišky",100]
["Funkcia TODAY vráti dnešný dátum. Automaticky sa aktualizuje, keď Excel vykoná prepočítanie.",null,"Sušienky",40,null,"Sušienky",40]
["VYSKÚŠAJTE TO\nVyberte tieto bunky. Potom v dolnom riadku v pravom dolnom rohu okna Excelu vyhľadajte položku Súčet: 170. Tento riadok sa nazýva stavový riadok a ponúka ďalší spôsob na rýchle zistenie súčtu a iných podrobností o vybratej bunke alebo rozsahu. ",null,"Torty",50,null,"Torty",50]
["DÔLEŽITÉ INFORMÁCIE\nDvakrát kliknite na túto bunku. Všimnite si číslo 100 na konci. Do vzorcov sa dajú takto vkladať čísla, ale ak to nie je úplne nevyhnutné, tento postup neodporúčame. Tieto čísla sa nazývajú konštanty, ľahko však môžete zabudnúť, že tam sú. Odporúčame vyriešiť to radšej odkazom na inú bunku, napríklad F51. Tak si číslo jednoducho všimnete, pretože nebude skryté vo vzorci. ",null,"Koláče",20,null,"Koláče",20]
["Ďalšie informácie na webe",null,"SÚČET > ",null,null,"POČET >"]
["Všetky informácie o funkcii SUM"]
["Sčítanie čísel pomocou príkazu Automatický súčet"]
["Všetky informácie o funkcii COUNT"]
["Bezplatné online školenie pre Excel"]
["Späť na začiatok"]
["Ďalší krok"]
{"$rows_empty":12}
[null,null,"Ovocie","Množstvo"]
[null,null,"Jablká",50]
[null,null,"Pomaranče",20]
[null,null,"Banány",60]
[null,null,"Citróny",40]
[null,null,"SÚČET > ",{"$f":"SUM(D35:D38)","v":170}]
[]
[]
[]
[]
[null,null,"Položka","Množstvo"]
[null,null,"Autá",20]
[null,null,"Kamióny",10]
[null,null,"Bicykle",10]
[null,null,"Korčule",40]
[]
[{"$nulls":3},"Súčet:",null,"Dodatočná hodnota","Nový súčet"]
[{"$nulls":3},{"$f":"SUM(D45:D48,100)","v":180},null,100,{"$f":"SUM(D45:D48,F51)","v":180}]

{"sheet":"AVERAGE","index":3,"n_rows":15,"n_cols":7,"rows_kept":15}
["Funkcia AVERAGE"]
["Pomocou funkcie  AVERAGE získate priemer čísel v rozsahu buniek.",null,"Ovocie","Množstvo",null,"Mäso","Množstvo"]
["Vyberte bunku D7 a potom pomocou príkazu Automatický súčet pridajte funkciu AVERAGE.",null,"Jablká",50,null,"Hovädzie",50]
["Teraz vyberte bunku G7 a zadajte funkciu AVERAGE zadaním vzorca =AVERAGE(G3:G6). ",null,"Pomaranče",20,null,"Kuracie",30]
["V bunke D15 môžete pomocou príkazu Automatický súčet alebo ručným zadaním zadať ďalšiu funkciu AVERAGE. ",null,"Banány",60,null,"Bravčové",10]
["VYSKÚŠAJTE TO\nPo výbere ľubovoľného rozsahu čísel sa v stavovom riadku okamžite zobrazí Average.\n",null,"Citróny",40,null,"Ryby",50]
["Aktivovať predchádzajúci hárok",null,"AVERAGE >",null,null,"AVERAGE >"]
["Prejsť na nasledujúci hárok"]
["BODY NAVYŠE\nSkúste tu použiť funkciu MEDIAN alebo MODE. \n\nFunkcia MEDIAN vráti hodnotu v strede množiny údajov, zatiaľ čo funkcia \nMODE vráti najčastejšie sa vyskytujúcu hodnotu.\n",null,"Položka","Množstvo",null,"Položka","Množstvo"]
["Prepojenia na ďalšie informácie na webe",null,"Chlieb",50,null,"Chlieb",50]
["Po výbere tohto prepojenia získate všetky informácie o funkcii AVERAGE, článok na webe",null,"Šišky",100,null,"Šišky",100]
["Po výbere tohto prepojenia získate všetky informácie o funkcii MEDIAN, článok na webe",null,"Sušienky",40,null,"Sušienky",40]
["Po výbere tohto prepojenia získate všetky informácie o funkcii MODE, článok na webe",null,"Torty",50,null,"Torty",50]
["Po výbere tohto prepojenia získate informácie o bezplatnom online školení pre Excel, článok na webe",null,"Koláče",20,null,"Koláče",20]
[null,null,"AVERAGE >"]

{"sheet":"MIN a MAX","index":4,"n_rows":15,"n_cols":7,"rows_kept":15}
["Funkcie MIN a MAX"]
["Pomocou funkcie MIN získate minimálne číslo v rozsahu buniek.",null,"Ovocie","Množstvo",null,"Mäso","Množstvo"]
["Pomocou funkcie MAX získate maximálne číslo v rozsahu buniek.",null,"Jablká",50,null,"Hovädzie",50]
["Vyberte bunku D7 a potom pomocou Sprievodcu automatickým súčtom pridajte funkciu MIN.\n",null,"Pomaranče",20,null,"Kuracie",30]
["Teraz vyberte bunku G7 a zadajte funkciu MAX zadaním vzorca =MAX(G3:G6).\n",null,"Banány",60,null,"Bravčové",10]
["V bunke D15 môžete pomocou Sprievodcu automatickým súčtom alebo ručným zadaním zadať funkciu MIN alebo MAX. \n",null,"Citróny",40,null,"Ryby",50]
["Ďalšie informácie na webe\n",null,"MIN >",null,null,"MAX >"]
["Všetky informácie o funkcii MIN"]
["Všetky informácie o funkcii MAX",null,"Položka","Množstvo",null,"Položka","Množstvo"]
["Bezplatné online školenie pre Excel",null,"Chlieb",50,null,"Chlieb",50]
["DOBRE VEDIEŤ\nFunkciu MIN alebo MAX môžete použiť s viacerými rozsahmi alebo hodnotami, a tým zobraziť hodnotu väčšiu alebo menšiu ako tieto hodnoty. Môžete napríklad použiť vzorec =MIN(A1:A10;B1:B10) alebo =MAX(A1:A10;B1), kde bunka B1 obsahuje prahovú hodnotu, napríklad 10. V takomto prípade by vzorec nikdy nevrátil výsledok menší ako 10.\n",null,"Šišky",100,null,"Šišky",100]
[null,null,"Sušienky",40,null,"Sušienky",40]
[null,null,"Torty",50,null,"Torty",50]
[null,null,"Koláče",20,null,"Koláče",20]
[null,null,"MIN alebo MAX >",{"$nulls":3},{"$f":"MIN(G10:G14,10)","v":10}]

{"sheet":"Dátum a čas","index":5,"n_rows":47,"n_cols":6,"rows_kept":47,"merged":[[4,2,4,3],[26,2,26,3],[30,2,30,3],[44,2,44,3]]}
["Funkcie dátumu"]
["Excel vám môže poskytnúť aktuálny dátum na základe miestnych nastavení počítača. Môžete tiež sčítať a odčítať dátumy."]
["Pozrite si funkciu TODAY, ktorá poskytne dnešný dátum. Patrí medzi živé, nestále funkcie, takže keď zošit otvoríte zajtra, bude zobrazovať zajtrajší dátum. Zadajte vzorec =TODAY() do bunky D6. \n"]
["Odčítanie dátumov – zadajte do bunky D7 dátum svojich nasledujúcich narodenín vo formáte DD.MM.YY a pozrite sa, ako Excel s použitím vzorca =D7-D6 zobrazí v bunke D8 počet dní, ktoré do nich zostávajú.\n"]
["Sčítanie dátumov – povedzme, že chcete zistiť dátum splatnosti faktúry alebo dátum, kedy musíte vrátiť knihu do knižnice. Zistíte ho tak, že pripočítate dni k dátumu. Do bunky D10 zadajte ľubovoľný počet dní. Do bunky D11 sme zadali vzorec =D6+D10 na výpočet termínu od dnešného dňa.\n",null,"Funkcie dátumu"]
["DOBRE VEDIEŤ\nExcel uchováva dátumy a časy na základe počtu dní od 1. januára 1900. Časy sa uchovávajú ako zlomkové časti dňa na základe minút. Takže 01.01.2017 12:30 sa v skutočnosti uchováva ako 42736.5208. Ak sa čas a dátum zobrazujú ako takéto čísla, môžete stlačiť kombináciu klávesov Ctrl + 1 a potom na karte Číslo vybrať formát dátum alebo čas. ",null,"Dnešný dátum:",null,null,{"$f":"IF(D6=TODAY(),\"Výborne!\",\"\")","v":""}]
["DÔLEŽITÉ INFORMÁCIE\nAk nechcete, aby Excel zobrazil záporné číslo, pretože ste ešte nezadali svoje narodeniny, môžete použiť funkciu IF takto: =IF(D7=\"\";\"\";D7-D6), čo znamená: AK sa D7 rovná nič, zobraz nič, v opačnom prípade zobraz D7 mínus D6.\n",null,"Vaše narodeniny:"]
["Funkcie času",null,"Počet dní do vašich narodenín:",{"$f":"D7-D6","v":0}]
["Excel vám môže poskytnúť aktuálny čas na základe miestnych nastavení počítača. Môžete tiež sčítať a odčítať časy. Môžete napríklad potrebovať sledovať počet hodín, ktoré zamestnanec odpracuje každý týždeň, a vypočítať jeho výplatu a nadčasy.\n"]
["Do bunky D28 zadajte vzorec =NOW(), ktorý zobrazí aktuálny čas a bude sa aktualizovať vždy, keď Excel vykoná výpočet. Ak potrebujete zmeniť formát času, stlačte kombináciu klávesov Ctrl + 1 a potom na karte Číslo vyberte pod položkou Čas požadovaný formát.\n",null,"Počet dní doby odkladu:"]
["Sčítanie hodín medzi časmi – do bunky D36 sme zadali vzorec =((D35-D32)-(D34-D33))*24, ktorý vypočíta čas príchodu a odchodu určitej osoby a potom odčíta čas obedňajšej prestávky. *24 na konci vzorca skonvertuje zlomkovú časť dňa, ktorú používa Excel, na hodiny. Bunku je však potrebné naformátovať ako číslo. Urobíte to tak, že prejdete na položky Domov > Formátovať > Objekt (Ctrl + 1) > Číslo > Číslo > 2 desatinné miesta.\n\n",null,"Dátum splatnosti faktúry:",{"$f":"D6+D10","v":"00:00:00"}]
["Keby tento vzorec mohol rozprávať, povedal by asi toto: Od hodnoty Čas príchodu odčítaj hodnotu Čas odchodu, potom od hodnoty Začiatok obeda odčítaj hodnotu Koniec obeda a nakoniec výsledok vynásob číslom 24, čím sa zlomkový čas Excelu skonvertuje na hodiny. Alebo inak povedané =((Čas odchodu – Čas príchodu) - (Začiatok obeda - Koniec obeda))*24."]
["Predchádzajúci"]
["Nasledujúci"]
["Ďalšie informácie na webe"]
["Všetky informácie o funkcii TODAY"]
["Všetky informácie o funkcii NOW"]
["Všetky informácie o funkcii DATE"]
["Bezplatné online školenie pre Excel"]
{"$rows_empty":7}
[null,null,"Funkcie času"]
[null,null,"Aktuálny čas:"]
[]
[]
[null,null,"Počet odpracovaných hodín za deň"]
[null,null,"Čas príchodu:","08:00:00"]
[null,null,"Koniec obeda:","12:00:00"]
[null,null,"Začiatok obeda:","13:00:00"]
[null,null,"Čas odchodu:","17:00:00"]
[null,null,"Celkový počet hodín:",{"$f":"((D35-D32)-(D34-D33))*24","v":8.000000000000002}]
{"$rows_empty":8}
[null,null,"Statický dátum a čas"]
[null,null,"Dátum:","2017-09-27"]
[null,null,"Čas:","08:52:00"]

{"sheet":"Spojenie textu a čísel","index":6,"n_rows":37,"n_cols":6,"rows_kept":37,"merged":[[26,2,26,3],[30,2,30,3],[34,2,34,3]]}
["Spojenie textu z rôznych buniek"]
["Pri práci v Exceli budete chcieť veľakrát spojiť text, ktorý sa nachádza v rôznych bunkách. Veľmi bežný je nasledujúci príklad, v ktorom máme mená a priezviská, a chceme ich skombinovať do formátu priezvisko, meno alebo do celého mena. Excel nám to našťastie umožňuje urobiť pomocou znaku &, ktorý zadáte stlačením kombinácie klávesov pravý Shift + 7.\n",null,"Meno","Priezvisko","Priezvisko, Meno","Celé meno"]
["Do bunky E3 zadajte vzorec =D3&C3, ktorým spojíte priezvisko a meno. \n",null,"Mária","Kováčová",{"$f":"D3&\", \"&C3","v":"Kováčová, Mária"},{"$f":"C3&\" \"&D3","v":"Mária Kováčová"}]
["Meno KováčováMária však nevyzerá úplne správne. Potrebujeme pridať čiarku a medzeru. Urobíme to tak, že pridáme nový reťazec s použitím úvodzoviek. Teraz zadáme vzorec =D3&\", \"&C3. Časť vzorca &\", \"& nám umožňuje pridať k textu v bunkách čiarku a medzeru.\n",null,"Adam","Horváth"]
["Ak chceme vytvoriť celé meno, spojíme meno a priezvisko, no použijeme medzeru bez čiarky. Do bunky F3 zadajte vzorec =C3&\" \"&D3.\n",null,"Jozef","Králik"]
["Ďalšie podrobnosti nájdete nižšie",null,"Miroslava","Beňová"]
["Nasledujúci",null,"Samuel","Krajčovič"]
["Spoločné použitie textu a čísel",null,"Milan","Blahoš"]
["Keď sme už spojili text s textom, poďme teraz použiť znak & na spojenie textu a čísel.\n\nPozrite sa na bunky C28:D29. Všimnite si, že dátum a čas sú v samostatných bunkách. Môžete ich spojiť pomocou symbolu & tak, ako je to v bunkách C32:C33, ale ako vidíte, nevyzerá to správne. Excel žiaľ nevie, ako chcete formátovať čísla, a preto ich rozpíše do ich základného formátu, ktorým je v tomto prípade poradové číslo dátumu. Excelu potrebujeme explicitne povedať, ako má naformátovať číselnú časť vzorca, aby sa vo výslednom textovom reťazci zobrazila požadovaným spôsobom. Urobíme to s použitím funkcie TEXT a kódu formátu.",null,"Roman","Polakovič"]
["Do bunky C36 zadajte vzorec =C28&\" \"&TEXT(D28;\"DD.MM.YYYY\"). DD.MM.YYYY je kód slovenského formátu deň.mesiac.rok, napríklad 25.09.2017.",null,"Lucia","Blahošová"]
["Do bunky C37 zadajte vzorec =C29&\" \"&TEXT(D29;\"H:MM\"). H:MM je kód slovenského formátu hodiny:minúty (24-hodinový formát), napríklad 13:30."]
["VYSKÚŠAJTE TO\nVzorce, a najmä tie veľké, sa niekedy ťažko čítajú, ich časti však môžete oddeliť medzerami takto:\n\n=C28 & \" \" & TEXT(D28;\"DD/MM/YYYY\")"]
["OPLATÍ SA PRESKÚMAŤ\nAk neviete, ktorý kód formátu použiť, môžete stlačiť kombináciu klávesov Ctrl + 1 a potom na karte Číslo určiť formát pre ľubovoľnú bunku. Potom vyberte možnosť Vlastné. Zobrazený kód formátu môžete skopírovať späť do svojho vzorca."]
["Ďalšie informácie na webe"]
["Všetky informácie o funkcii TEXT"]
["Kombinovanie textu a čísel"]
["Bezplatné online školenie pre Excel"]
{"$rows_empty":9}
[null,null,"Použitie textu a čísel"]
[null,null,"Dnešný dátum:",{"$f":"TODAY()","v":"2021-10-19"}]
[null,null,"Aktuálny čas:",{"$f":"NOW()","v":44488.481232175924}]
[]
[null,null,"Spojenie textu a čísel"]
[null,null,{"$f":"C28&\" \"&D28","v":"Dnešný dátum: 44488"}]
[null,null,{"$f":"C29&\" \"&D29","v":"Aktuálny čas: 44488.4812321759"}]
[]
[null,null,"Formátovanie textu a čísel"]
[null,null,{"$f":"C28 &\" \"& TEXT(D28,\"DD.MM.YYYY\")","v":"Dnešný dátum: 19.10.2021"}]
[null,null,{"$f":"C29&\" \"&TEXT(D29,\"H:MM\")","v":"Aktuálny čas: 11:32"}]

{"sheet":"Príkazy IF","index":7,"n_rows":37,"n_cols":6,"rows_kept":37,"merged":[[7,2,7,3]]}
["Príkazy IF"]
["Pomocou príkazov IF môžete vykonať logické porovnania medzi podmienkami. Príkaz IF vo všeobecnosti znamená, že ak má jedna podmienka hodnotu true, má sa vykonať určitá akcia, a ak má naopak hodnotu false, má sa vykonať iná akcia. Vzorce môžu vrátiť text, hodnoty alebo aj ďalšie výpočty."]
["V bunke D9 zadajte vzorec =IF(C9=\"Jablko\";TRUE;FALSE). Správna odpoveď je TRUE. \n"]
["Skopírujte bunku D9 do bunky D10. Odpoveď by tu mala byť FALSE, pretože pomaranč nie je jablko.\n"]
["Vyskúšajte iný príklad – pozrite sa na vzorec v bunke D12. Zadali sme do nej vzorec =IF(C12<100;\"Menšie ako 100\";\"Väčšie ako alebo rovné 100\"). Čo sa stane, ak zadáte do bunky C12 číslo väčšie ako 100?\n"]
["DÔLEŽITÉ INFORMÁCIE\nSlová TRUE a FALSE sa od iných slov v excelových vzorcoch líšia v tom, že nie je potrebné, aby boli v úvodzovkách, a Excel ich automaticky napíše veľkými písmenami. V úvodzovkách nemusia byť ani čísla. Obyčajný text, napríklad slovo Áno alebo Nie, musí byť v úvodzovkách takto: \n=IF(C9=\"Jablko\";\"Áno\";\"Nie\")"]
["Ďalšie podrobnosti nájdete nižšie"]
["Nasledujúci",null,"Príkazy IF"]
["Príkaz IF s ďalšou funkciou",null,"Jablko"]
["Príkazy IF tiež môžu vynútiť vykonanie ďalších výpočtov v prípade, že je splnená určitá podmienka. V tomto príklade vyhodnotíme bunku  s cieľom zistiť, či sa má účtovať daň z obratu, a vypočítať ju v prípade, že podmienka má hodnotu true.\n",null,"Pomaranč"]
["Do bunky F33 sme zadali vzorec =IF(E33=\"Áno\";F31*DaňZObratu;0), pričom slovo DaňZObratu sme nastavili ako pomenovaný rozsah s hodnotou 0,0825. Náš vzorec znamená: Ak sa bunka E33 rovná hodnote Áno, vynásob bunku F31 hodnotou DaňZObratu, v opačnom prípade vráť hodnotu 0.\n\nSkúste v bunke E33 zmeniť hodnotu z Áno na Nie a pozrite sa, ako sa zmení výpočet."]
["Ďalej sme pridali príkaz IF na výpočet prepravy, ak sa požaduje. V bunke F35 uvidíte vzorec =IF(E35=\"Áno\";SUM(D28:D29)*1,25;0). To znamená: Ak má bunka E35 hodnotu Áno, použi súčet stĺpca Množstvo vo vyššie uvedenej tabuľke a vynásob ho hodnotou 1,25, v opačnom prípade vráť hodnotu 0.\n",null,50,{"$f":"IF(C12<100,\"Menšie ako 100\",\"Väčšie ako alebo rovné 100\")","v":"Menšie ako 100"}]
["Teraz zmeňte hodnotu 1,25 vo vzorci v bunke F35 na slovo Preprava. Keď začnete písať, automatické opravy Excelu by toto slovo mali nájsť za vás. Keď ho nájdu, zadajte ho stlačením klávesu Tab. Ide o pomenovaný rozsah, ktorý sme zadali cez položky Vzorce > Definovať názov. Ak budete kedykoľvek potrebovať zmeniť prepravné náklady, stačí to urobiť na jednom mieste, a názov Preprava môžete použiť kdekoľvek v zošite.\n\n"]
["DOBRE VEDIEŤ\nKeď vytvárate vzorec, Excel automaticky umiestni farebné orámovanie okolo všetkých rozsahov, na ktoré sa odkazuje vo vzorci, a zodpovedajúce rozsahy vo vzorci budú mať rovnakú farbu. Ak si to chcete pozrieť, vyberte bunku F33 a stlačte kláves F2 na úpravu vzorca."]
["TIP OD ODBORNÍKOV\nPomocou pomenovaných rozsahov môžete na jednom mieste definovať podmienky alebo hodnoty a potom ich znova použiť na rôznych miestach v celom zošite. Ak si chcete pozrieť všetky pomenované rozsahy v tomto zošite, prejdite na položky Vzorce > Správca názvov. Ďalšie informácie získate kliknutím sem.\n"]
["Predchádzajúci"]
["Nasledujúci"]
["Ďalšie informácie na webe"]
["Všetky informácie o funkcii IF"]
["Všetky informácie o funkcii IFS"]
["Rozšírené príkazy IF"]
["Bezplatné online školenie pre Excel"]
[]
[]
[]
[]
[null,null,"Položka","Množstvo","Náklady","Spolu"]
[null,null,"Aparát",2,{"v":9.760711585683554,"d":"9.76 €"},{"$f":"'Príkazy IF'!$E$28:$E$29*'Príkazy IF'!$D$28:$D$29","v":{"v":19.521423171367108,"d":"19.52 €"}}]
[null,null,"Vecička",3,{"v":3.4189202461080024,"d":"3.42 €"},{"$f":"'Príkazy IF'!$E$28:$E$29*'Príkazy IF'!$D$28:$D$29","v":{"v":10.256760738324008,"d":"10.26 €"}}]
[]
[{"$nulls":3},"Medzisúčet",{"$f":"SUM('Príkazy IF'!$E$28:$E$29)","v":{"v":13.179631831791557,"d":"13.18 €"}},{"$f":"SUM('Príkazy IF'!F28:F29)","v":{"v":29.778183909691116,"d":"29.78 €"}}]
[]
[{"$nulls":3},"Daň z obratu?","Áno",{"$f":"IF(E33=\"Áno\",F31*DaňZObratu,0)","v":{"v":2.456700172549517,"d":"2.46 €"}}]
[]
[{"$nulls":3},"Preprava?","Áno",{"$f":"IF(E35=\"Áno\",SUM(D28:D29)*1.25,0)","v":{"v":6.25,"d":"6.25 €"}}]
[]
[{"$nulls":3},"Spolu",null,{"$f":"SUM(F33,F31,F35)","v":{"v":38.48488408224063,"d":"38.48 €"}}]

{"sheet":"VLOOKUP","index":8,"n_rows":43,"n_cols":7,"rows_kept":43}
["VLOOKUP"]
["VLOOKUP je jedna z najbežnejšie používaných funkcií v Exceli (a je aj jednou z našich obľúbených!). Funkcia VLOOKUP umožňuje vyhľadať hodnotu v stĺpci vľavo a následne vrátiť informácie v inom stĺpci vpravo v prípade, že nájde zhodu. Funkcia VLOOKUP znamená:\n"]
["=VLOOKUP(A1;B:C;2;FALSE)"]
["Čo chcete hľadať?"]
["Ak to nájdete, z koľkého stĺpca v poradí doprava sa má načítať hodnota?"]
["Kde to chcete hľadať?"]
["Chcete presnú, alebo približnú zhodu?"]
["Do bunky D22 zadajte vzorec =VLOOKUP(C22;C17:D20;2;FALSE). Správna odpoveď pre Jablká je 50. Funkcia VLOOKUP hľadala hodnotu Jablká, našla ju, potom prešla o jeden stĺpec doprava a vrátila množstvo.\n\n"]
["Teraz si to skúste sami v časti Mäso v bunke G22. Mali by ste vytvoriť vzorec =VLOOKUP(F22;F17:G20;2;FALSE).\n\n"]
["VYSKÚŠAJTE\nSkúste vybrať iné položky v rozbaľovacích zoznamoch. Bunky s výsledkami sa budú automaticky aktualizovať na nové hodnoty."]
["Ďalšie podrobnosti nájdete nižšie"]
["Nasledujúci"]
["Funkcia VLOOKUP a chyba #NEDOSTUPNÝ"]
["Časom sa určite stretnete so situáciou, keď funkcia VLOOKUP nebude vedieť nájsť to, o čo ste ju požiadali, a vráti chybu (#NEDOSTUPNÝ). Niekedy je to preto, že hľadaná hodnota jednoducho neexistuje, alebo preto, že odkazovaná bunka ešte neobsahuje hodnotu.\n"]
["Ak viete, že hľadaná hodnota existuje, no chcete skryť chybu vtedy, keď je hľadaná bunka prázdna, môžete použiť príkaz IF. V tomto prípade doplníme náš existujúci vzorec funkcie VLOOKUP v bunke D43 takto:\n\n=IF(C43=\"\";\"\";VLOOKUP(C43;C37:D41;2;FALSE))\n\nTento vzorec znamená: ak sa bunka C43 rovná nič (\"\"), potom vráť nič, v opačnom prípade vráť výsledky funkcie VLOOKUP. Všimnite si druhú pravú zátvorku na konci vzorca. Táto zátvorka uzatvára príkaz IF.\n"]
["Ak si nie ste istí, že hľadaná hodnota existuje, no aj tak chcete potlačiť chybu #NEDOSTUPNÝ, môžete v bunke G43 použiť funkciu na spracovanie chýb s názvom IFERROR: =IFERROR(VLOOKUP(F43;F37:G41;2;FALSE);\"\"). Funkcia IFERROR hovorí: ak funkcia VLOOKUP vráti platný výsledok, zobraz ho, v opačnom prípade zobraz nič (\"\"). V tomto príklade sme zobrazili nič (\"\"), môžete však použiť aj čísla (0,1, 2 atď.) alebo text, napríklad \"Vzorec je nesprávny\".\n",null,"Ovocie","Množstvo",null,"Mäso","Množstvo"]
["DÔLEŽITÉ INFORMÁCIE\nFunkcia IFERROR obsluhuje chyby zakrytím, čo znamená, že potlačí každú chybu, ktorú môže vzorec vrátiť. Môže to spôsobiť problémy vtedy, keď vám Excel dáva oznámenie o odôvodnenej chybe vo vzorci, ktorú je potrebné opraviť.\n\nVo všeobecnosti je vhodné nepridávať obsluhu chýb do vzorcov dovtedy, kým nemáte úplnú istotu, že fungujú správne.",null,"Jablká",50,null,"Hovädzie",50]
["Predchádzajúci",null,"Pomaranče",20,null,"Kuracie",30]
["Nasledujúci",null,"Banány",60,null,"Bravčové",10]
["Ďalšie informácie na webe",null,"Citróny",40,null,"Ryby",50]
["Všetky informácie o funkcii VLOOKUP"]
["Všetky informácie o funkciách INDEX/MATCH",null,"Jablká",null,null,"Bravčové"]
["Všetky informácie o funkcii IFERROR"]
["Použitie kontingenčných tabuliek na analýzu údajov z hárkov"]
["Bezplatné online školenie pre Excel"]
{"$rows_empty":9}
[null,null,"Keby mohla funkcia SUM v bunke D42 rozprávať, povedala by asi toto: Sčítaj hodnoty v bunkách D38, D39, D40 a D41."]
[null,null,"Položka","Množstvo",null,"Položka","Množstvo"]
[null,null,"Chlieb",50,null,"Chlieb",50]
[null,null,"Šišky",100,null,"Šišky",100]
[null,null,"Sušienky",40,null,"Sušienky",40]
[null,null,"Torty",50,null,"Torty",50]
[null,null,"Koláče",20,null,"Koláče",20]
[]
[{"$nulls":3},{"$f":"VLOOKUP(C43,C37:D41,2,FALSE)","v":{"$error":"#N/A"}},null,"Pečivo",{"$f":"IFERROR(VLOOKUP(F43,F37:G41,2,FALSE),\"\")","v":""}]

{"sheet":"Podmienené funkcie","index":9,"n_rows":123,"n_cols":34,"rows_kept":123}
["Podmienené funkcie – SUMIF"]
["Pomocou podmienených funkcií môžete vypočítať súčet, priemer a počet alebo zistiť minimálnu či maximálnu hodnotu v rámci rozsahu na základe určitej podmienky alebo kritéria, ktoré zadáte. Napríklad: koľko zo všetkého ovocia v zozname sú jablká? Koľko pomarančov je odrody Florida?",null,"Ovocie","Množstvo",null,"Ovocie","Odroda","Množstvo",{"$nulls":17},"Ovocie",null,"Jablká",null,"Pomaranče",null,"Banány",null,"Citróny"]
["Pomocou funkcie SUMIF môžete vypočítať súčet jedného rozsahu na základe konkrétnych kritérií, ktoré vyhľadáte v inom rozsahu. Môžete napríklad zistiť, koľko máte jabĺk. Vyberte bunku D17 a zadajte vzorec =SUMIF(C3:C14;C17;D3:D14). Funkcia SUMIF má takúto štruktúru:",null,"Jablká",50,null,"Jablká","Fuji",50,{"$nulls":17},"Jablká",null,"Fuji",null,"Florida",null,"Cavendish",null,"Rough"]
[{"$f":"SUMIF(C3:C14,C17,D3:D14)","v":150},null,"Pomaranče",20,null,"Pomaranče","Florida",20,{"$nulls":17},"Pomaranče",null,"Honeycrisp",null,"Navel",null,"Lady Finger",null,"Eureka"]
["Na ktorý rozsah sa chcete pozrieť?",null,"Banány",60,null,"Banány","Cavendish",60,{"$nulls":17},"Banány"]
["Akú hodnotu (text alebo číslo) chcete hľadať?",null,"Citróny",40,null,"Citróny","Rough",40,{"$nulls":17},"Citróny"]
["Súčet z ktorého rozsahu sa má vypočítať pre každú nájdenú zhodu?",null,"Jablká",50,null,"Jablká","Honeycrisp",50]
["Funkcia SUMIFS je rovnaká ako funkcia SUMIF, no umožňuje použiť viaceré kritériá. V tomto príklade preto môžete namiesto vyhľadávania len podľa ovocia vyhľadávať podľa ovocia a odrody. Vyberte bunku H17 a zadajte vzorec =SUMIFS(H3:H14;F3:F14;F17;G3:G14;G17). Funkcia SUMIFS má takúto štruktúru:\n",null,"Pomaranče",20,null,"Pomaranče","Navel",20]
["=SUMIFS(H3:H14;F3:F14;F17;G3:G14;G17)",null,"Banány",60,null,"Banány","Lady Finger",60]
["Ktorý rozsah chcete sčítať?",null,"Citróny",40,null,"Citróny","Eureka",40]
["Toto je prvý rozsah, v ktorom sa majú hľadať zhody",null,"Jablká",50,null,"Jablká","Honeycrisp",50]
["Toto je kritérium pre prvú zhodu",null,"Pomaranče",20,null,"Pomaranče","Navel",20]
["Toto je druhý rozsah, v ktorom sa majú hľadať zhody",null,"Banány",60,null,"Banány","Cavendish",60]
["Toto je kritérium pre druhú zhodu",null,"Citróny",40,null,"Citróny","Eureka",40]
["TIP OD ODBORNÍKOV\nKaždá bunka ovocia a odrody obsahuje rozbaľovací zoznam, v ktorom môžete vybrať rôzne ovocie. Vyskúšajte si to a sledujte, ako sa vzorce automaticky aktualizujú."]
["Ďalšie podrobnosti nájdete nižšie",null,"Ovocie","SUMIF",null,"Ovocie","Odroda","SUMIFS"]
["Ďalší krok",null,"Jablká",null,null,"Pomaranče","Florida"]
["Podmienené funkcie – COUNTIF"]
["Pomocou funkcií COUNTIF a COUNTIFS môžete zistiť počet hodnôt v rozsahu na základe kritérií, ktoré zadáte. Od iných funkcií IF a IFS sú mierne odlišné v tom, že obsahujú len rozsah kritérií a kritériá. Jeden rozsah nevyhodnotia a počet hodnôt zistia hľadaním v druhom rozsahu."]
["Vyberte bunku D64 a zadajte vzorec =COUNTIF(C50:C61;C64). Funkcia COUNTIF má takúto štruktúru:"]
["=COUNTIF(C50:C61;C64)"]
["Na ktorý rozsah sa chcete pozrieť?"]
["Akú hodnotu (text alebo číslo) chcete hľadať?"]
["Funkcia COUNTIFS je rovnaká ako funkcia SUMIF, no umožňuje použiť viaceré kritériá. V tomto príklade preto môžete namiesto vyhľadávania len podľa ovocia vyhľadávať podľa ovocia a odrody. Vyberte bunku H64 a zadajte vzorec =COUNTIFS(F50:F61;F64;G50:G61;G64). Funkcia COUNTIFS má takúto štruktúru:\n"]
["=COUNTIFS(F50:F61;F64;G50:G61;G64)"]
["Je to prvý rozsah, v ktorom sa má zistiť počet hodnôt"]
["Toto je kritérium pre prvú zhodu"]
["Je to druhý rozsah, v ktorom sa má zistiť počet hodnôt"]
["Toto je kritérium pre druhú zhodu"]
["Ďalšie podrobnosti nájdete nižšie"]
["Nasledujúci"]
["Ďalšie podmienené funkcie"]
["Už ste videli funkcie SUMIF, SUMIFS, COUNTIF a COUNTIFS. Teraz môžete skúsiť pracovať sami s inými funkciami, ako sú napríklad AVERAGEIF/S, MAXIFS a MINIFS. Všetky majú rovnakú štruktúru, takže po napísaní vzorca stačí len jednoducho nahradiť názov funkcie názvom požadovanej funkcie. Napísali sme všetky funkcie, ktoré budete potrebovať do bunky E106, preto ich môžete skopírovať a prilepiť. Alebo ich môžete skúsiť zadať ručne, aby ste si to precvičili.\n\nSUMIF \t=SUMIF(C92:C103;C106;E92:E103) \nSUMIFS \t=SUMIFS(E92:E103;C92:C103;C106;D92:D103;D106) \nAVERAGEIF \t=AVERAGEIF(C92:C103;C106;E92:E103) \nAVERAGEIFS\t=AVERAGEIFS(E92:E103;C92:C103;C106;D92:D103;D106)\nCOUNTIF \t=COUNTIF(C92:C103;C106)\nCOUNTIFS \t=COUNTIFS(C92:C103;C106;D92:D103;D106) \nMAXIFS \t=MAXIFS(E92:E103;C92:C103;C106;D92:D103;D106)\nMINIFS \t=MINIFS(E92:E103;C92:C103;C106;D92:D103;D106)"]
["Ďalšie podrobnosti nájdete nižšie"]
["Nasledujúci"]
["Funkcia SUMIF s argumentom hodnoty"]
["Tu je príklad funkcie SUMIF, ktorá s použitím kritéria väčšie ako (>) vyhľadá všetky hodnoty väčšie ako zadaná hodnota:"]
[{"$f":"SUMIF(D118:D122,\">=50\")","v":200}]
["Sčítajte niekoľko hodnôt na základe tohto kritéria:"]
["...prehľadaj tieto bunky...\n "]
["...a ak nájdeš hodnoty väčšie ako 50, spočítaj ich.\n "]
["POZNÁMKA: Ak zistíte, že potrebujete vytvoriť veľké množstvo podmienených funkcií, možno by pre vás bola lepším riešením kontingenčná tabuľka. Ďalšie informácie nájdete v tomto článku o kontingenčných tabuľkách."]
["Ďalšie informácie na webe"]
["Všetky informácie o funkcii SUMIF"]
["Všetky informácie o funkcii SUMIFS"]
["Všetky informácie o funkcii COUNTIF"]
["Všetky informácie o funkcii COUNTIFS"]
["Všetky informácie o funkcii AVERAGEIF"]
["Všetky informácie o funkcii AVERAGEIFS",null,"Ovocie","Množstvo",null,"Ovocie","Odroda","Množstvo"]
["Všetky informácie o funkcii MINIFS",null,"Jablká",50,null,"Jablká","Fuji",50]
["Všetky informácie o funkcii MAXIFS",null,"Pomaranče",20,null,"Pomaranče","Florida",20]
["Vytvorenie rozbaľovacieho zoznamu",null,"Banány",60,null,"Banány","Cavendish",60]
["Bezplatné online školenie pre Excel",null,"Citróny",40,null,"Citróny","Rough",40]
["Späť na začiatok",null,"Jablká",50,null,"Jablká","Honeycrisp",50]
["Nasledujúci",null,"Pomaranče",20,null,"Pomaranče","Navel",20]
[null,null,"Banány",60,null,"Banány","Lady Finger",60]
[null,null,"Citróny",40,null,"Citróny","Eureka",40]
[null,null,"Jablká",50,null,"Jablká","Honeycrisp",50]
[null,null,"Pomaranče",20,null,"Pomaranče","Navel",20]
[null,null,"Banány",60,null,"Banány","Cavendish",60]
[null,null,"Citróny",40,null,"Citróny","Eureka",40]
[]
[null,null,"Ovocie","COUNTIF",null,"Ovocie","Odroda","COUNTIFS"]
[null,null,"Jablká",{"$f":"COUNTIF(C50:C61,C64)","v":3},null,"Pomaranče","Florida",{"$f":"COUNTIFS(F50:F61,F64,G50:G61,G64)","v":1}]
{"$rows_empty":26}
[null,null,"Ovocie","Odroda","Množstvo"]
[null,null,"Jablká","Fuji",50]
[null,null,"Pomaranče","Florida",20]
[null,null,"Banány","Cavendish",60]
[null,null,"Citróny","Rough",40]
[null,null,"Jablká","Honeycrisp",50]
[null,null,"Pomaranče","Navel",20]
[null,null,"Banány","Lady Finger",60]
[null,null,"Citróny","Eureka",40]
[null,null,"Jablká","Honeycrisp",50]
[null,null,"Pomaranče","Navel",20]
[null,null,"Banány","Cavendish",60]
[null,null,"Citróny","Eureka",40]
[]
[null,null,"Ovocie","Odroda","Vyskúšajte to"]
[null,null,"Citróny","Eureka",{"$f":"AVERAGEIFS(E92:E103,C92:C103,C106,D92:D103,D106)","v":40}]
{"$rows_empty":10}
[null,null,"Položka","Množstvo"]
[null,null,"Chlieb",50]
[null,null,"Šišky",100]
[null,null,"Sušienky",40]
[null,null,"Torty",50]
[null,null,"Koláče",20]
[{"$nulls":3},{"$f":"SUMIF(D118:D122,\">=50\")","v":200}]

{"sheet":"Sprievodca funkciami","index":10,"n_rows":14,"n_cols":4,"rows_kept":14}
["Využite pomoc od Sprievodcu funkciami"]
["Ak poznáte názov funkcie, ktorú chcete použiť, no nie ste si istí, ako ju vytvoriť, môže vám pomôcť Sprievodca funkciami.\n"]
["Vyberte bunku D10, prejdite na položky Vzorce > Vložiť funkciu, do poľa Hľadať funkciu zadajte funkciu VLOOKUP a stlačte tlačidlo Prejsť. Keď je zvýraznená funkcia VLOOKUP, kliknite na tlačidlo OK v dolnej časti okna. Po výbere funkcie v zozname Excel zobrazí jej syntax.\n"]
["Zadajte argumenty funkcie do príslušných textových polí. Pri zadávaní jednotlivých argumentov ich Excel vyhodnotí a zobrazí ich výsledok, pričom konečný výsledok sa zobrazí v dolnej časti okna. Pri zadávaní jednotlivých častí sa v dolnej časti formulára zobrazujú kritériá pre jednotlivé argumenty. Po dokončení stlačte tlačidlo OK a Excel zadá vzorec.\n\n\n",null,"Ovocie","Množstvo"]
["VYSKÚŠAJTE TO\nMali by ste vytvoriť vzorec =VLOOKUP(C10;C5:D8;2;FALSE)",null,"Jablká",50]
["DOBRE VEDIEŤ\nOdkazy na bunky a rozsahy môžete zadať alebo ich vybrať myšou.",null,"Pomaranče",20]
["DOBRE VEDIEŤ\nPri zadávaní častí jednotlivých argumentov sa v dolnej časti formulára nad výsledkom vzorca zobrazuje popis daného argumentu.\n",null,"Banány",60]
["Predchádzajúci",null,"Citróny",40]
["Nasledujúci"]
["Ďalšie informácie na webe",null,"Jablká",{"$f":"VLOOKUP(C10,C5:D8,2,FALSE)","v":50}]
["Prehľad vzorcov v Exceli"]
["Zoznam funkcií Excelu (podľa kategórie)"]
["Zoznam funkcií Excelu (podľa abecedy)"]
["Bezplatné online školenie pre Excel"]

{"sheet":"Chyby vo vzorcoch","index":11,"n_rows":36,"n_cols":4,"rows_kept":36}
["Oprava chýb vo vzorcoch"]
["Časom sa stretnete so vzorcom, ktorý bude obsahovať chybu a Excel pri ňom zobrazí hlásenie #ChybaNázvu. Chyby môžu byť užitočné, pretože poukazujú na to, keď niečo nefunguje správne, no zároveň môže byť náročné ich opraviť. Našťastie je k dispozícii niekoľko možností, ktoré vám pomôžu zistiť zdroj chyby a opraviť ho.\n"]
["Kontrola chýb – prejdite na položky Vzorce > Kontrola chýb. Načíta sa dialógové okno, v ktorom je uvedená všeobecná príčina konkrétnej chyby. Chyba #NEDOSTUPNÝ v bunke D9 je spôsobená tým, že neexistuje hodnota zhodujúca sa s hodnotou Jablko. Tento problém môžete vyriešiť tak, že použijete existujúcu hodnotu, potlačíte chybu pomocou funkcie IFERROR, alebo ju budete ignorovať s vedomím, že zmizne vtedy, keď použijete existujúcu hodnotu.\n",null,"Ovocie","Množstvo"]
["Keď kliknete na položku Pomocník pre túto chybu, zobrazí sa konkrétna téma Pomocníka pre toto chybové hlásenie. Keď kliknete na položku Zobraziť kroky výpočtu, načíta sa dialógové okno Vyhodnotenie vzorca.\n",null,"Jablká",50]
["Pri každom kliknutí na položku Vyhodnotiť bude Excel po krokoch prechádzať jednotlivými časťami vzorca. Nemusí vám oznámiť príčinu chyby, no ukáže vám, kde sa nachádza. Podľa toho potom po prečítaní témy Pomocníka budete vedieť odvodiť, prečo je vo vzorci chyba.\n",null,"Pomaranče",20]
["VYSKÚŠAJTE\nAká je tu chyba? Tip: Pokúšame sa sčítať (SUM) všetky položky.",null,"Banány",60]
["DOBRE VEDIEŤ\nPo kliknutí na položku Možnosti môžete nastaviť pravidlá pre zobrazovanie alebo ignorovanie chýb v Exceli.\n",null,"Citróny",40]
["Predchádzajúci"]
["Nasledujúci",null,"Jablko",{"$f":"VLOOKUP(C9,C3:D7,2,FALSE)","v":{"$error":"#N/A"}}]
["Ďalšie informácie na webe"]
["Zisťovanie chýb vo vzorcoch"]
["Zabránenie vzniku nefunkčných vzorcov"]
["Vyhodnotenie vnoreného vzorca po krokoch"]
["Bezplatné online školenie pre Excel"]
{"$rows_empty":15}
[null,null,"Ovocie","Množstvo"]
[null,null,"Jablká",50]
[null,null,"Pomaranče",20]
[null,null,"Banány",60]
[null,null,"Citróny",40]
[]
[null,null,"Spolu",{"$f":"sume(D31:D34)","v":{"$error":"#NAME?"}}]

{"sheet":"Ďalšie informácie","index":12,"n_rows":5,"n_cols":1,"rows_kept":5}
["Máte ďalšie otázky o Exceli?"]
["Stlačte klávesy ALT + Q a napíšte, čo potrebujete zistiť."]
["Pokračujte ďalej. O Exceli sa môžete naučiť ešte omnoho viac:"]
["Komunita: Položte otázky a spojte sa s ďalšími fanúšikmi Excelu.\n"]
["Čo je ešte nové?\nPredplatitelia služieb Office 365 neustále získavajú aktualizácie a nové funkcie.\n\n"]